fUST/lending_fUST_20250713
["ID","MTS","AMOUNT","RATE_DAILY","PERIOD"]
[371746873,1752414644188,-500.0,0.00016972,2]
[371746875,1752414644198,-1236.00658049,0.00016972,2]
[371746877,1752414644208,-500.0,0.00016972,2]
[371746878,1752414644217,-1236.00658049,0.00016972,2]
[371746879,1752414644227,-500.0,0.00016972,2]
[371746880,1752414644236,-1236.00658049,0.00016972,2]
[371746881,1752414644246,-500.0,0.00016972,2]
[371746882,1752414644255,-1236.00658049,0.00016972,2]
[371746883,1752414644266,-500.0,0.00016972,2]
[371746884,1752414644275,-1236.00658049,0.00016972,2]
[371746885,1752414644284,-500.0,0.00016972,2]
[371746886,1752414644293,-500.0,0.00016972,2]
[371746887,1752414644302,-1236.00658049,0.00016972,2]
[371746888,1752414644312,-280.87933926,0.00016972,2]
[371746889,1752414644322,-500.0,0.00016972,2]
[371746890,1752414644331,-1236.00658049,0.00016972,2]
[371746891,1752414644341,-500.0,0.00016972,2]
[371746892,1752414644350,-1236.00658049,0.00016972,2]
[371746893,1752414644360,-500.0,0.00016972,2]
[371746894,1752414644370,-1236.00658049,0.00016972,2]
[371746895,1752414644379,-500.0,0.00016972,2]
[371746896,1752414644389,-1236.00658049,0.00016972,2]
[371746897,1752414644398,-500.0,0.00016972,2]
[371746898,1752414644409,-500.0,0.00016972,2]
[371746899,1752414644419,-1236.00658049,0.00016972,2]
[371746900,1752414644428,-1236.00658049,0.00016972,2]
[371746901,1752414644438,-1236.00658049,0.00016972,2]
[371746902,1752414644447,-1236.00658049,0.00016972,2]
[371746903,1752414644457,-1236.00658049,0.00016972,2]
[371746904,1752414644466,-1236.00658049,0.00016972,2]
[371746905,1752414644475,-1236.00658049,0.00016972,2]
[371746906,1752414644485,-1236.00658049,0.00016972,2]
[371746907,1752414644495,-1236.00658049,0.00016972,2]
[371746908,1752414644504,-1236.00658049,0.00016972,2]
[371746909,1752414644512,-1236.00658049,0.00016972,2]
[371746910,1752414644521,-1236.00658049,0.00016972,2]
[371746911,1752414644531,-1236.00658049,0.00016972,2]
[371746912,1752414644540,-1236.00658049,0.00016972,2]
[371746913,1752414644549,-1236.00658049,0.00016972,2]
[371746914,1752414644559,-499.99999999,0.00016972,2]
[371746916,1752414644568,-1246.99330564,0.00016972,2]
[371746917,1752414644578,-1246.99330564,0.00016972,2]
[371746918,1752414644588,-1246.99330564,0.00016972,2]
[371746919,1752414644597,-1246.99330564,0.00016972,2]
[371746920,1752414644607,-1246.99330564,0.00016972,2]
[371746921,1752414644617,-1246.99330564,0.00016972,2]
[371746922,1752414644627,-1246.99330564,0.00016972,2]
[371746923,1752414644636,-1246.99330564,0.00016972,2]
[371746924,1752414644646,-1246.99330564,0.00016972,2]
[371746925,1752414644655,-1246.99330564,0.00016972,2]
[371746926,1752414644666,-1246.99330564,0.00016972,2]
[371746927,1752414644676,-1246.99330564,0.00016972,2]
[371746928,1752414644685,-1246.99330564,0.00016972,2]
[371746930,1752414644694,-1246.99330564,0.00016972,2]
[371746931,1752414644703,-1246.99330564,0.00016972,2]
[371746932,1752414644713,-1246.99330564,0.00016972,2]
[371746933,1752414644722,-1246.99330564,0.00016972,2]
[371746934,1752414644732,-1246.99330564,0.00016972,2]
[371746935,1752414644741,-206.86222941,0.00016973,2]
[371746936,1752414644751,-500.0,0.00016973,2]
[371746937,1752414644760,-500.65935702,0.00016973,2]
[371746938,1752414644770,-172.73037819,0.00016973,2]
[371746939,1752414644779,-500.0,0.00016973,2]
[371746940,1752414644789,-160.87458032,0.00016973,2]
[371746941,1752414644798,-500.0,0.00016973,2]
[371746942,1752414644807,-500.0,0.00016973,2]
[371746943,1752414644817,-502.09627277,0.00016973,2]
[371746944,1752414644827,-501.93154519,0.00016973,2]
[371746945,1752414644836,-500.0,0.00016973,2]
[371746946,1752414644846,-500.0,0.00016973,2]
[371746947,1752414644855,-598.50210147,0.00016973,2]
[371746948,1752414644865,-849.5,0.00016976,3]
[371746949,1752414644874,-486.55867669,0.00016986,2]
[371746950,1752414644884,-446.5102063,0.00016986,2]
[371746951,1752414644893,-460.0,0.00016986,2]
[371746952,1752414644902,-460.0,0.00016986,2]
[371746953,1752414644913,-460.0,0.00016986,2]
[371746954,1752414644923,-460.0,0.00016986,2]
[371746955,1752414644933,-460.0,0.00016986,2]
[371746956,1752414644942,-520.01,0.00016986,2]
[371746957,1752414644951,-460.0,0.00016986,2]
[371746958,1752414644962,-460.0,0.00016986,2]
[371746959,1752414644972,-460.0,0.00016986,2]
[371746960,1752414644982,-513.54,0.00016986,2]
[371746961,1752414644991,-460.0,0.00016986,2]
[371746962,1752414645001,-460.0,0.00016986,2]
[371746963,1752414645011,-460.0,0.00016986,2]
[371746964,1752414645020,-460.0,0.00016986,2]
[371746965,1752414645030,-460.0,0.00016986,2]
[371746966,1752414645039,-460.0,0.00016986,2]
[371746967,1752414645048,-460.0,0.00016986,2]
[371746968,1752414645058,-460.0,0.00016986,2]
[371746969,1752414645067,-460.0,0.00016986,2]
[371746970,1752414645077,-460.0,0.00016986,2]
[371746971,1752414645087,-460.0,0.00016986,2]
[371746972,1752414645097,-460.0,0.00016986,2]
[371746973,1752414645106,-460.0,0.00016986,2]
[371746974,1752414645115,-460.0,0.00016986,2]
[371746975,1752414645125,-460.0,0.00016986,2]
[371746976,1752414645134,-460.0,0.00016986,2]
[371746977,1752414645144,-460.0,0.00016986,2]
[371746978,1752414645154,-460.0,0.00016986,2]
[371746979,1752414645164,-460.0,0.00016986,2]
[371746980,1752414645173,-460.0,0.00016986,2]
[371746981,1752414645183,-460.0,0.00016986,2]
[371746982,1752414645194,-460.0,0.00016986,2]
[371746983,1752414645203,-460.0,0.00016986,2]
[371746984,1752414645213,-460.0,0.00016986,2]
[371746985,1752414645223,-201.49230578,0.00016986,2]
[371746986,1752414645234,-460.0,0.00016986,2]
[371746987,1752414645244,-460.0,0.00016986,2]
[371746988,1752414645253,-460.0,0.00016986,2]
[371746989,1752414645263,-1801.81,0.00016986,2]
[371746990,1752414645274,-460.0,0.00016986,2]
[371746991,1752414645284,-460.0,0.00016986,2]
[371746992,1752414645293,-2722.19,0.00016986,2]
[371746993,1752414645303,-470.25,0.00016986,2]
[371746994,1752414645313,-460.0,0.00016986,2]
[371746995,1752414645322,-460.0,0.00016986,2]
[371746996,1752414645331,-460.0,0.00016986,2]
[371746997,1752414645342,-460.0,0.00016986,2]
[371746998,1752414645351,-460.0,0.00016986,2]
[371746999,1752414645361,-460.0,0.00016986,2]
[371747000,1752414645370,-460.0,0.00016986,2]
[371747001,1752414645381,-639.66,0.00016986,2]
[371747002,1752414645390,-460.0,0.00016986,2]
[371747003,1752414645399,-460.0,0.00016986,2]
[371747004,1752414645408,-460.0,0.00016986,2]
[371747005,1752414645420,-640.34,0.00016986,2]
[371747006,1752414645429,-460.0,0.00016986,2]
[371747007,1752414645439,-460.0,0.00016986,2]
[371747008,1752414645449,-517.2,0.00016986,2]
[371747009,1752414645458,-460.0,0.00016986,2]
[371747010,1752414645467,-460.0,0.00016986,2]
[371747011,1752414645476,-722.03,0.00016986,2]
[371747012,1752414645486,-460.0,0.00016986,2]
[371747013,1752414645495,-1105.55,0.00016986,2]
[371747014,1752414645504,-460.0,0.00016986,2]
[371747015,1752414645513,-460.0,0.00016986,2]
[371747016,1752414645523,-460.0,0.00016986,2]
[371747017,1752414645533,-227.09,0.00016986,2]
[371747018,1752414645542,-460.0,0.00016986,2]
[371747019,1752414645552,-1761.42,0.00016986,2]
[371747020,1752414645561,-460.14,0.00016986,2]
[371747021,1752414645571,-460.0,0.00016986,2]
[371747022,1752414645582,-460.0,0.00016986,2]
[371747023,1752414645593,-460.0,0.00016986,2]
[371747024,1752414645603,-460.0,0.00016986,2]
[371747025,1752414645613,-460.0,0.00016986,2]
[371747026,1752414645622,-460.0,0.00016986,2]
[371747027,1752414645631,-460.0,0.00016986,2]
[371747028,1752414645639,-573.94,0.00016986,2]
[371747029,1752414645649,-460.0,0.00016986,2]
[371747030,1752414645658,-460.0,0.00016986,2]
[371747031,1752414645669,-460.0,0.00016986,2]
[371747032,1752414645679,-460.0,0.00016986,2]
[371747033,1752414645688,-460.0,0.00016986,2]
[371747034,1752414645698,-460.0,0.00016986,2]
[371747035,1752414645707,-460.0,0.00016986,2]
[371747036,1752414645716,-460.0,0.00016986,2]
[371747037,1752414645725,-460.0,0.00016986,2]
[371747038,1752414645734,-1066.1,0.00016986,2]
[371747039,1752414645744,-460.0,0.00016986,2]
[371747040,1752414645753,-460.0,0.00016986,2]
[371747041,1752414645762,-460.0,0.00016986,2]
[371747042,1752414645772,-460.0,0.00016986,2]
[371747043,1752414645782,-197.12501723,0.00016986,2]
[371747044,1752414645791,-500.0,0.00016986,2]
[371747045,1752414645801,-781.97,0.00016986,2]
[371747046,1752414645810,-460.0,0.00016986,2]
[371747047,1752414645819,-460.0,0.00016986,2]
[371747048,1752414645929,-460.0,0.00016986,2]
[371747049,1752414645939,-460.0,0.00016986,2]
[371747050,1752414645949,-460.0,0.00016986,2]
[371747051,1752414645959,-460.0,0.00016986,2]
[371747052,1752414645968,-460.0,0.00016986,2]
[371747054,1752414645978,-460.0,0.00016986,2]
[371747056,1752414645987,-460.0,0.00016986,2]
[371747058,1752414645997,-506.63,0.00016986,2]
[371747060,1752414646007,-460.0,0.00016986,2]
[371747062,1752414646017,-460.0,0.00016986,2]
[371747063,1752414646027,-2827.39,0.00016986,2]
[371747064,1752414646036,-460.0,0.00016986,2]
[371747065,1752414646045,-570.8,0.00016986,2]
[371747066,1752414646054,-460.0,0.00016986,2]
[371747067,1752414646063,-460.0,0.00016986,2]
[371747068,1752414646072,-460.0,0.00016986,2]
[371747069,1752414646082,-460.0,0.00016986,2]
[371747070,1752414646091,-599.24,0.00016986,2]
[371747071,1752414646101,-701.92,0.00016986,2]
[371747072,1752414646110,-514.40934441,0.00016986,2]
[371747073,1752414646119,-260.56377116,0.000171,2]
[371747075,1752414646128,-460.0,0.0001715,2]
[371747076,1752414646137,-995.17,0.0001715,2]
[371747077,1752414646146,-609.7,0.0001715,2]
[371747078,1752414646156,-460.0,0.0001715,2]
[371747079,1752414646167,-1274.01,0.0001715,2]
[371747080,1752414646176,-598.34,0.0001715,2]
[371747081,1752414646186,-460.0,0.0001715,2]
[371747082,1752414646200,-973.85,0.0001715,2]
[371747083,1752414646209,-460.0,0.0001715,2]
[371747084,1752414646219,-2337.07,0.0001715,2]
[371747085,1752414646228,-2765.79662467,0.00017159,2]
[371747086,1752414646238,-260.56377101,0.0001721,2]
[371747087,1752414646248,-314.00247,0.0001726,2]
[371747088,1752414646257,-314.00247,0.0001726,2]
[371747089,1752414646267,-460.0,0.0001726,2]
[371747090,1752414646276,-460.0,0.0001726,2]
[371747091,1752414646286,-460.0,0.0001726,2]
[371747092,1752414646296,-460.0,0.0001726,2]
[371747093,1752414646305,-520.01,0.0001726,2]
[371747094,1752414646315,-460.0,0.0001726,2]
[371747095,1752414646324,-460.0,0.0001726,2]
[371747097,1752414646335,-513.54,0.0001726,2]
[371747099,1752414646355,-460.0,0.0001726,2]
[371747100,1752414646373,-460.0,0.0001726,2]
[371747102,1752414646383,-460.0,0.0001726,2]
[371747103,1752414646392,-460.0,0.0001726,2]
[371747105,1752414646402,-460.0,0.0001726,2]
[371747107,1752414646412,-460.0,0.0001726,2]
[371747108,1752414646426,-460.0,0.0001726,2]
[371747110,1752414646436,-460.0,0.0001726,2]
[371747111,1752414646445,-460.0,0.0001726,2]
[371747112,1752414646455,-460.0,0.0001726,2]
[371747113,1752414646465,-460.0,0.0001726,2]
[371747115,1752414646474,-460.0,0.0001726,2]
[371747116,1752414646484,-460.0,0.0001726,2]
[371747117,1752414646494,-226.76280206,0.0001726,2]
[371747118,1752414646504,-460.0,0.0001726,2]
[371747119,1752414646514,-460.0,0.0001726,2]
[371747121,1752414646524,-460.0,0.0001726,2]
[371747122,1752414646533,-460.0,0.0001726,2]
[371747123,1752414646543,-460.0,0.0001726,2]
[371747124,1752414646553,-460.0,0.0001726,2]
[371747125,1752414646562,-460.0,0.0001726,2]
[371747126,1752414646572,-519.98397861,0.0001726,2]
[371747127,1752414646582,-460.0,0.0001726,2]
[371747128,1752414646592,-1801.81,0.0001726,2]
[371747129,1752414646602,-213.91592102,0.0001726,2]
[371747130,1752414646612,-463.15584125,0.0001726,2]
[371747131,1752414646622,-2722.19,0.0001726,2]
[371747132,1752414646631,-470.25,0.0001726,2]
[371747133,1752414646641,-283.35163415,0.0001726,2]
[371747134,1752414646650,-460.0,0.0001726,2]
[371747135,1752414646667,-460.0,0.0001726,2]
[371747136,1752414646676,-460.0,0.0001726,2]
[371747137,1752414646685,-460.0,0.0001726,2]
[371747138,1752414646695,-460.0,0.0001726,2]
[371747139,1752414646705,-460.0,0.0001726,2]
[371747140,1752414646715,-460.0,0.0001726,2]
[371747141,1752414646724,-639.66,0.0001726,2]
[371747142,1752414646734,-460.0,0.0001726,2]
[371747143,1752414646743,-460.0,0.0001726,2]
[371747144,1752414646752,-460.0,0.0001726,2]
[371747145,1752414646762,-640.34,0.0001726,2]
[371747146,1752414646772,-517.2,0.0001726,2]
[371747147,1752414646782,-460.0,0.0001726,2]
[371747148,1752414646791,-460.0,0.0001726,2]
[371747149,1752414646801,-722.03,0.0001726,2]
[371747150,1752414646811,-350.72989772,0.0001726,2]
[371747151,1752414646821,-1105.55,0.0001726,2]
[371747152,1752414646831,-460.0,0.0001726,2]
[371747153,1752414646841,-155.88706673,0.0001726,2]
[371747154,1752414646850,-460.0,0.0001726,2]
[371747155,1752414646859,-460.0,0.0001726,2]
[371747156,1752414646868,-1761.42,0.0001726,2]
[371747157,1752414646878,-460.0,0.0001726,2]
[371747159,1752414646888,-460.0,0.0001726,2]
[371747160,1752414646897,-257.65104003,0.0001726,2]
[371747161,1752414646907,-460.0,0.0001726,2]
[371747162,1752414646919,-460.0,0.0001726,2]
[371747163,1752414646928,-460.0,0.0001726,2]
[371747164,1752414646938,-460.0,0.0001726,2]
[371747165,1752414646947,-573.94,0.0001726,2]
[371747166,1752414646957,-460.0,0.0001726,2]
[371747167,1752414646966,-460.0,0.0001726,2]
[371747168,1752414646976,-460.0,0.0001726,2]
[371747169,1752414646986,-509.58,0.0001726,2]
[371747170,1752414646996,-460.0,0.0001726,2]
[371747171,1752414647006,-460.0,0.0001726,2]
[371747172,1752414647017,-1066.1,0.0001726,2]
[371747173,1752414647026,-460.0,0.0001726,2]
[371747174,1752414647036,-460.0,0.0001726,2]
[371747175,1752414647046,-460.0,0.0001726,2]
[371747176,1752414647056,-460.0,0.0001726,2]
[371747177,1752414647066,-781.97,0.0001726,2]
[371747178,1752414647075,-460.0,0.0001726,2]
[371747179,1752414647085,-291.17,0.0001726,2]
[371747180,1752414647095,-460.0,0.0001726,2]
[371747181,1752414647104,-460.0,0.0001726,2]
[371747182,1752414647114,-460.0,0.0001726,2]
[371747183,1752414647123,-460.0,0.0001726,2]
[371747184,1752414647132,-460.0,0.0001726,2]
[371747185,1752414647142,-460.0,0.0001726,2]
[371747186,1752414647152,-506.63,0.0001726,2]
[371747187,1752414647161,-460.0,0.0001726,2]
[371747188,1752414647173,-2827.39,0.0001726,2]
[371747189,1752414647183,-537.39267293,0.0001726,2]
[371747190,1752414647196,-460.0,0.0001726,2]
[371747191,1752414647206,-570.8,0.0001726,2]
[371747192,1752414647216,-460.0,0.0001726,2]
[371747193,1752414647226,-460.0,0.0001726,2]
[371747194,1752414647235,-460.0,0.0001726,2]
[371747195,1752414647245,-460.0,0.0001726,2]
[371747196,1752414647254,-599.24,0.0001726,2]
[371747197,1752414647265,-701.92,0.0001726,2]
[371747198,1752414647275,-169.310708,0.00017319,2]
[371747199,1752414647284,-1000.0,0.00017321,2]
[371747200,1752414647293,-256.99765276,0.00017321,2]
[371747201,1752414647303,-500.0,0.00017321,2]
[371747202,1752414647312,-987.80547386,0.00017321,2]
[371747203,1752414647322,-1000.0,0.00017321,2]
[371747204,1752414647331,-1000.0,0.00017321,2]
[371747205,1752414647340,-500.0,0.00017321,2]
[371747206,1752414647350,-1000.0,0.00017321,2]
[371747207,1752414647359,-957.35057617,0.00017321,2]
[371747208,1752414647368,-1000.0,0.00017321,2]
[371747209,1752414647377,-1000.0,0.00017321,2]
[371747210,1752414647386,-1002.5197529,0.00017321,2]
[371747211,1752414647396,-1000.0,0.00017321,2]
[371747212,1752414647405,-1000.0,0.00017321,2]
[371747213,1752414647415,-1000.0,0.00017321,2]
[371747214,1752414647425,-1025.77011804,0.00017321,2]
[371747215,1752414647434,-500.0,0.00017321,2]
[371747216,1752414647444,-1000.0,0.00017321,2]
[371747217,1752414647453,-502.26266064,0.00017321,2]
[371747218,1752414647462,-357.31698797,0.00017321,2]
[371747219,1752414647472,-472.30408363,0.00017321,2]
[371747220,1752414647481,-505.50054643,0.00017321,2]
[371747221,1752414647491,-501.25544665,0.00017321,2]
[371747222,1752414647500,-151.0,0.00017362,2]
[371747223,1752414647510,-151.0,0.00017362,2]
[371747224,1752414647519,-169.310708,0.00017402,2]
[371747225,1752414647531,-460.0,0.00017424,2]
[371747226,1752414647543,-995.17,0.00017424,2]
[371747227,1752414647553,-609.7,0.00017424,2]
[371747228,1752414647563,-460.0,0.00017424,2]
[371747229,1752414647572,-1274.01,0.00017424,2]
[371747230,1752414647582,-598.34,0.00017424,2]
[371747231,1752414647591,-460.0,0.00017424,2]
[371747232,1752414647601,-973.85,0.00017424,2]
[371747233,1752414647611,-2337.07,0.00017424,2]
[371747234,1752414647620,-169.310708,0.00017484,2]
[371747235,1752414647630,-1000.0,0.00017521,2]
[371747236,1752414647639,-1000.0,0.00017521,2]
[371747237,1752414647649,-1000.0,0.00017521,2]
[371747238,1752414647658,-949.33250482,0.00017521,2]
[371747239,1752414647670,-1000.0,0.00017521,2]
[371747240,1752414647680,-260.56377101,0.00017521,2]
[371747241,1752414647689,-437.40952046,0.00017525,2]
[371747242,1752414647699,-460.0,0.00017534,2]
[371747243,1752414647708,-460.0,0.00017534,2]
[371747244,1752414647718,-460.0,0.00017534,2]
[371747245,1752414647727,-460.0,0.00017534,2]
[371747246,1752414647736,-520.01,0.00017534,2]
[371747247,1752414647745,-489.24275503,0.00017534,2]
[371747248,1752414647755,-460.0,0.00017534,2]
[371747249,1752414647764,-513.54,0.00017534,2]
[371747250,1752414647773,-460.0,0.00017534,2]
[371747251,1752414647783,-460.0,0.00017534,2]
[371747252,1752414647793,-525.00570465,0.00017534,2]
[371747253,1752414647803,-460.0,0.00017534,2]
[371747254,1752414647812,-536.38,0.00017534,2]
[371747255,1752414647821,-442.34809504,0.00017534,2]
[371747256,1752414647831,-460.0,0.00017534,2]
[371747257,1752414647840,-460.0,0.00017534,2]
[371747258,1752414647850,-460.0,0.00017534,2]
[371747259,1752414647859,-183.33,0.00017534,2]
[371747260,1752414647869,-460.0,0.00017534,2]
[371747261,1752414647879,-460.0,0.00017534,2]
[371747262,1752414647889,-460.0,0.00017534,2]
[371747263,1752414647899,-460.0,0.00017534,2]
[371747264,1752414647908,-467.65174943,0.00017534,2]
[371747265,1752414647919,-460.0,0.00017534,2]
[371747266,1752414647929,-460.0,0.00017534,2]
[371747267,1752414647939,-460.0,0.00017534,2]
[371747268,1752414647948,-1801.81,0.00017534,2]
[371747269,1752414647958,-2722.19,0.00017534,2]
[371747270,1752414647967,-470.25,0.00017534,2]
[371747271,1752414647977,-460.0,0.00017534,2]
[371747272,1752414647986,-460.0,0.00017534,2]
[371747273,1752414647995,-460.0,0.00017534,2]
[371747274,1752414648003,-460.0,0.00017534,2]
[371747275,1752414648012,-460.0,0.00017534,2]
[371747276,1752414648021,-460.0,0.00017534,2]
[371747277,1752414648030,-639.66,0.00017534,2]
[371747278,1752414648040,-460.0,0.00017534,2]
[371747279,1752414648049,-463.00183291,0.00017534,2]
[371747280,1752414648058,-460.0,0.00017534,2]
[371747281,1752414648068,-640.34,0.00017534,2]
[371747282,1752414648077,-517.2,0.00017534,2]
[371747283,1752414648086,-460.0,0.00017534,2]
[371747284,1752414648097,-460.0,0.00017534,2]
[371747285,1752414648106,-722.03,0.00017534,2]
[371747286,1752414648115,-1105.55,0.00017534,2]
[371747287,1752414648125,-460.0,0.00017534,2]
[371747288,1752414648134,-460.0,0.00017534,2]
[371747289,1752414648143,-1761.42,0.00017534,2]
[371747290,1752414648153,-460.0,0.00017534,2]
[371747291,1752414648162,-460.0,0.00017534,2]
[371747292,1752414648174,-460.0,0.00017534,2]
[371747293,1752414648183,-460.0,0.00017534,2]
[371747294,1752414648195,-308.23273044,0.00017534,2]
[371747295,1752414648205,-460.0,0.00017534,2]
[371747296,1752414648215,-573.94,0.00017534,2]
[371747297,1752414648224,-460.0,0.00017534,2]
[371747298,1752414648234,-460.0,0.00017534,2]
[371747299,1752414648244,-460.0,0.00017534,2]
[371747300,1752414648254,-460.0,0.00017534,2]
[371747301,1752414648263,-460.0,0.00017534,2]
[371747302,1752414648273,-1066.1,0.00017534,2]
[371747303,1752414648284,-500.69799627,0.00017534,2]
[371747304,1752414648293,-460.0,0.00017534,2]
[371747305,1752414648302,-460.0,0.00017534,2]
[371747306,1752414648312,-460.0,0.00017534,2]
[371747307,1752414648321,-781.97,0.00017534,2]
[371747308,1752414648331,-460.0,0.00017534,2]
[371747309,1752414648340,-460.0,0.00017534,2]
[371747310,1752414648350,-460.0,0.00017534,2]
[371747311,1752414648359,-460.0,0.00017534,2]
[371747312,1752414648369,-460.0,0.00017534,2]
[371747313,1752414648378,-460.0,0.00017534,2]
[371747314,1752414648388,-506.63,0.00017534,2]
[371747315,1752414648397,-460.0,0.00017534,2]
[371747316,1752414648406,-2827.39,0.00017534,2]
[371747317,1752414648416,-460.0,0.00017534,2]
[371747318,1752414648425,-570.8,0.00017534,2]
[371747319,1752414648435,-460.0,0.00017534,2]
[371747320,1752414648444,-460.0,0.00017534,2]
[371747321,1752414648563,-460.0,0.00017534,2]
[371747322,1752414648574,-460.0,0.00017534,2]
[371747323,1752414648584,-599.24,0.00017534,2]
[371747324,1752414648594,-701.92,0.00017534,2]
[371747325,1752414648603,-200.0,0.00017542,2]
[371747326,1752414648614,-169.310708,0.00017567,2]
[371747327,1752414648624,-442.34543898,0.00017573,2]
[371747328,1752414648633,-500.0,0.00017573,2]
[371747329,1752414648644,-512.15400389,0.00017573,2]
[371747330,1752414648653,-500.0,0.00017573,2]
[371747331,1752414648663,-500.0,0.00017573,2]
[371747332,1752414648675,-249.01175982,0.00017573,2]
[371747333,1752414648684,-500.0,0.00017573,2]
[371747334,1752414648694,-500.0,0.00017573,2]
[371747335,1752414648704,-500.0,0.00017573,2]
[371747336,1752414648713,-500.0,0.00017573,2]
[371747337,1752414648723,-500.0,0.00017573,2]
[371747338,1752414648733,-500.0,0.00017573,2]
[371747339,1752414648743,-500.0,0.00017573,2]
[371747340,1752414648752,-500.0,0.00017573,2]
[371747341,1752414648761,-500.0,0.00017573,2]
[371747342,1752414648771,-503.11993608,0.00017573,2]
[371747343,1752414648781,-500.0,0.00017573,2]
[371747344,1752414648791,-500.0,0.00017573,2]
[371747345,1752414648800,-500.0,0.00017573,2]
[371747346,1752414648810,-618.49287827,0.00017573,2]
[371747347,1752414648820,-500.66823025,0.00017573,2]
[371747348,1752414648829,-500.0,0.00017573,2]
[371747349,1752414648839,-186.74614867,0.00017607,2]
[371747350,1752414648848,-169.310708,0.0001765,2]
[371747351,1752414648858,-460.0,0.00017698,2]
[371747352,1752414648868,-995.17,0.00017698,2]
[371747353,1752414648878,-609.7,0.00017698,2]
[371747354,1752414648887,-460.0,0.00017698,2]
[371747355,1752414648897,-1274.01,0.00017698,2]
[371747356,1752414648907,-598.34,0.00017698,2]
[371747357,1752414648918,-460.0,0.00017698,2]
[371747358,1752414648928,-973.85,0.00017698,2]
[371747359,1752414648938,-2337.07,0.00017698,2]
[371747360,1752414648948,-169.310708,0.00017733,2]
[371747361,1752414648958,-800.0,0.000178,3]
[371747362,1752414648968,-440.82494386,0.00017808,2]
[371747363,1752414648978,-460.0,0.00017808,2]
[371747364,1752414648988,-460.0,0.00017808,2]
[371747365,1752414648997,-460.0,0.00017808,2]
[371747366,1752414649007,-520.01,0.00017808,2]
[371747367,1752414649016,-460.0,0.00017808,2]
[371747368,1752414649026,-513.54,0.00017808,2]
[371747369,1752414649035,-460.0,0.00017808,2]
[371747370,1752414649046,-460.0,0.00017808,2]
[371747371,1752414649055,-460.0,0.00017808,2]
[371747372,1752414649065,-460.0,0.00017808,2]
[371747373,1752414649075,-460.0,0.00017808,2]
[371747374,1752414649084,-460.0,0.00017808,2]
[371747375,1752414649094,-460.0,0.00017808,2]
[371747376,1752414649104,-460.0,0.00017808,2]
[371747377,1752414649114,-460.0,0.00017808,2]
[371747378,1752414649124,-460.0,0.00017808,2]
[371747379,1752414649133,-195.8,0.00017808,2]
[371747380,1752414649143,-460.0,0.00017808,2]
[371747381,1752414649152,-1801.81,0.00017808,2]
[371747382,1752414649162,-2722.19,0.00017808,2]
[371747383,1752414649174,-470.25,0.00017808,2]
[371747384,1752414649183,-460.0,0.00017808,2]
[371747385,1752414649196,-460.0,0.00017808,2]
[371747386,1752414649206,-460.0,0.00017808,2]
[371747387,1752414649216,-460.0,0.00017808,2]
[371747388,1752414649226,-460.0,0.00017808,2]
[371747389,1752414649237,-460.0,0.00017808,2]
[371747390,1752414649246,-639.66,0.00017808,2]
[371747391,1752414649256,-460.0,0.00017808,2]